fUSD/lending_fUSD_20240317
["ID","MTS","AMOUNT","RATE_DAILY","PERIOD"]
[319298287,1710645043238,-500.0,0.00015477,2]
[319298288,1710645043247,-294.75051208,0.00015478,2]
[319298289,1710645043256,-220.3776993,0.00015478,2]
[319298290,1710645043266,-184.72118084,0.00015478,2]
[319298291,1710645043276,-199.1190511,0.00015478,2]
[319298292,1710645043285,-217.06708636,0.00015478,2]
[319298293,1710645043295,-155.55550652,0.00015478,2]
[319298294,1710645043306,-155.14319652,0.00015478,2]
[319298295,1710645043316,-404.21026152,0.00015478,2]
[319298296,1710645043326,-445.75259701,0.00015478,2]
[319298297,1710645043336,-156.51132444,0.00015478,2]
[319298298,1710645043346,-794.2643391,0.00015478,2]
[319298299,1710645043357,-155.35223061,0.00015478,2]
[319298300,1710645043368,-200.0,0.00015478,2]
[319298301,1710645043378,-6213.51582172,0.00015478,2]
[319298302,1710645043389,-265.53164377,0.00015478,2]
[319298303,1710645043399,-184.12689899,0.00015478,2]
[319298304,1710645043408,-527.29473383,0.00015478,7]
[319298305,1710645043419,-468.34366984,0.00015478,2]
[319298306,1710645043429,-1931.25816731,0.00015478,2]
[319298307,1710645043438,-155.69533176,0.00015478,2]
[319298308,1710645043447,-290.0615947,0.00015478,2]
[319298309,1710645043458,-5000.0,0.00015478,2]
[319298310,1710645043468,-2302.21537281,0.00015478,2]
[319298311,1710645043477,-346.57934051,0.00015478,2]
[319298312,1710645043486,-500.0,0.00015478,2]
[319298313,1710645043495,-500.0,0.00015478,2]
[319298314,1710645043505,-657.4,0.00015478,2]
[319298315,1710645043514,-2413.04,0.00015478,2]
[319298316,1710645043523,-238.56548138,0.00015478,2]
[319298317,1710645043533,-500.0,0.00015478,2]
[319298318,1710645043542,-848.14,0.00015478,2]
[319298319,1710645043551,-682.89,0.00015478,2]
[319298320,1710645043560,-676.84,0.00015478,2]
[319298321,1710645043569,-706.37,0.00015478,2]
[319298322,1710645043579,-500.0,0.00015478,2]
[319298323,1710645043588,-500.0,0.00015478,2]
[319298324,1710645043597,-500.0,0.00015478,2]
[319298325,1710645043606,-500.0,0.00015478,2]
[319298326,1710645043615,-500.0,0.00015478,2]
[319298327,1710645043624,-500.0,0.00015478,2]
[319298328,1710645043634,-1529.19,0.00015478,2]
[319298329,1710645043642,-500.0,0.00015478,2]
[319298330,1710645043652,-662.85,0.00015478,2]
[319298331,1710645043661,-500.0,0.00015478,2]
[319298332,1710645043670,-501.74,0.00015478,2]
[319298333,1710645043679,-1369.02,0.00015478,2]
[319298334,1710645043688,-571.69,0.00015478,2]
[319298335,1710645043697,-500.0,0.00015478,2]
[319298336,1710645043708,-500.0,0.00015478,2]
[319298337,1710645043717,-500.0,0.00015478,2]
[319298338,1710645043727,-711.8,0.00015478,2]
[319298339,1710645043737,-614.42,0.00015478,2]
[319298340,1710645043748,-500.0,0.00015478,2]
[319298341,1710645043758,-500.0,0.00015478,2]
[319298342,1710645043770,-1643.07,0.00015478,2]
[319298343,1710645043779,-2052.52,0.00015478,2]
[319298344,1710645043790,-303.08119858,0.00015479,2]
[319298345,1710645043799,-222.87912994,0.00015479,5]
[319298346,1710645043809,-487.12593273,0.00015479,2]
[319298347,1710645043818,-3046.60911697,0.00015479,2]
[319298348,1710645043829,-500.0,0.00015479,2]
[319298349,1710645043838,-270.83,0.00015479,2]
[319298350,1710645043847,-500.0,0.00015479,2]
[319298351,1710645043857,-500.0,0.00015479,2]
[319298352,1710645043866,-500.0,0.00015479,2]
[319298353,1710645043875,-500.0,0.00015479,2]
[319298354,1710645043884,-249.91,0.00015479,2]
[319298355,1710645043894,-583.14,0.00015479,2]
[319298356,1710645043903,-583.14,0.00015479,2]
[319298357,1710645043912,-583.14,0.00015479,2]
[319298358,1710645043921,-583.14,0.00015479,2]
[319298359,1710645043931,-583.14,0.00015479,2]
[319298360,1710645043940,-583.14,0.00015479,2]
[319298361,1710645043950,-583.14,0.00015479,2]
[319298362,1710645043960,-583.14,0.00015479,2]
[319298363,1710645043969,-583.14,0.00015479,2]
[319298364,1710645043979,-583.14,0.00015479,2]
[319298365,1710645044039,-583.14,0.00015479,2]
[319298366,1710645044049,-583.14,0.00015479,2]
[319298367,1710645044058,-583.14,0.00015479,2]
[319298368,1710645044067,-583.14,0.00015479,2]
[319298369,1710645044076,-583.33386204,0.00015479,2]
[319298370,1710645044086,-657.4,0.00015479,2]
[319298371,1710645044094,-657.4,0.00015479,2]
[319298372,1710645044104,-2413.04,0.00015479,2]
[319298373,1710645044113,-2413.04,0.00015479,2]
[319298374,1710645044122,-657.4,0.00015479,2]
[319298375,1710645044131,-2413.04,0.00015479,2]
[319298376,1710645044141,-657.4,0.00015479,2]
[319298377,1710645044150,-2413.04,0.00015479,2]
[319298378,1710645044159,-657.4,0.00015479,2]
[319298379,1710645044169,-2413.04,0.00015479,2]
[319298380,1710645044178,-657.4,0.00015479,2]
[319298381,1710645044187,-2413.04,0.00015479,2]
[319298382,1710645044197,-657.4,0.00015479,2]
[319298383,1710645044206,-2413.04,0.00015479,2]
[319298384,1710645044216,-657.4,0.00015479,2]
[319298385,1710645044225,-2413.04,0.00015479,2]
[319298386,1710645044235,-657.4,0.00015479,2]
[319298387,1710645044244,-2413.04,0.00015479,2]
[319298388,1710645044253,-657.4,0.00015479,2]
[319298389,1710645044262,-2413.04,0.00015479,2]
[319298390,1710645044271,-657.4,0.00015479,2]
[319298391,1710645044280,-2413.04,0.00015479,2]
[319298392,1710645044290,-657.4,0.00015479,2]
[319298393,1710645044298,-2413.04,0.00015479,2]
[319298394,1710645044308,-2413.04,0.00015479,2]
[319298395,1710645044316,-657.4,0.00015479,2]
[319298396,1710645044325,-2413.13,0.00015479,2]
[319298397,1710645044334,-657.4,0.00015479,2]
[319298398,1710645044343,-657.51,0.00015479,2]
[319298399,1710645044352,-500.0,0.00015479,2]
[319298400,1710645044361,-500.0,0.00015479,2]
[319298401,1710645044370,-500.0,0.00015479,2]
[319298402,1710645044379,-848.14,0.00015479,2]
[319298403,1710645044389,-848.14,0.00015479,2]
[319298404,1710645044402,-848.14,0.00015479,2]
[319298405,1710645044410,-848.14,0.00015479,2]
[319298406,1710645044419,-848.14,0.00015479,2]
[319298407,1710645044429,-848.14,0.00015479,2]
[319298408,1710645044438,-848.14,0.00015479,2]
[319298409,1710645044446,-848.14,0.00015479,2]
[319298410,1710645044455,-848.14,0.00015479,2]
[319298411,1710645044463,-848.14,0.00015479,2]
[319298412,1710645044471,-848.14,0.00015479,2]
[319298413,1710645044477,-682.89,0.00015479,2]
[319298414,1710645044484,-848.14,0.00015479,2]
[319298415,1710645044492,-682.89,0.00015479,2]
[319298416,1710645044501,-682.89,0.00015479,2]
[319298417,1710645044509,-848.14,0.00015479,2]
[319298418,1710645044519,-682.89,0.00015479,2]
[319298419,1710645044529,-848.26,0.00015479,2]
[319298420,1710645044537,-682.89,0.00015479,2]
[319298421,1710645044546,-682.89,0.00015479,2]
[319298422,1710645044555,-682.89,0.00015479,2]
[319298423,1710645044566,-682.89,0.00015479,2]
[319298424,1710645044576,-682.89,0.00015479,2]
[319298425,1710645044587,-682.89,0.00015479,2]
[319298426,1710645044597,-682.89,0.00015479,2]
[319298427,1710645044607,-682.89,0.00015479,2]
[319298428,1710645044618,-682.89,0.00015479,2]
[319298429,1710645044627,-682.89,0.00015479,2]
[319298430,1710645044636,-683.05,0.00015479,2]
[319298431,1710645044645,-676.84,0.00015479,2]
[319298432,1710645044654,-676.84,0.00015479,2]
[319298433,1710645044663,-676.84,0.00015479,2]
[319298434,1710645044672,-676.84,0.00015479,2]
[319298435,1710645044681,-676.84,0.00015479,2]
[319298436,1710645044690,-676.84,0.00015479,2]
[319298437,1710645044699,-676.84,0.00015479,2]
[319298438,1710645044709,-676.84,0.00015479,2]
[319298439,1710645044718,-676.84,0.00015479,2]
[319298440,1710645044727,-676.84,0.00015479,2]
[319298441,1710645044737,-676.84,0.00015479,2]
[319298442,1710645044746,-676.84,0.00015479,2]
[319298443,1710645044755,-676.84,0.00015479,2]
[319298444,1710645044764,-677.02,0.00015479,2]
[319298445,1710645044773,-706.37,0.00015479,2]
[319298446,1710645044783,-706.37,0.00015479,2]
[319298447,1710645044793,-706.37,0.00015479,2]
[319298448,1710645044803,-706.37,0.00015479,2]
[319298449,1710645044813,-706.37,0.00015479,2]
[319298450,1710645044824,-706.37,0.00015479,2]
[319298451,1710645044834,-706.37,0.00015479,2]
[319298452,1710645044843,-706.37,0.00015479,2]
[319298453,1710645044852,-706.37,0.00015479,2]
[319298454,1710645044861,-706.37,0.00015479,2]
[319298455,1710645044871,-706.37,0.00015479,2]
[319298456,1710645044880,-706.37,0.00015479,2]
[319298457,1710645044890,-706.37,0.00015479,2]
[319298458,1710645044900,-706.37,0.00015479,2]
[319298459,1710645044909,-500.0,0.00015479,2]
[319298460,1710645044918,-500.0,0.00015479,2]
[319298461,1710645044927,-500.0,0.00015479,2]
[319298462,1710645044936,-500.0,0.00015479,2]
[319298463,1710645044945,-500.0,0.00015479,2]
[319298464,1710645044955,-500.0,0.00015479,2]
[319298465,1710645044964,-500.0,0.00015479,2]
[319298466,1710645044973,-500.0,0.00015479,2]
[319298467,1710645044983,-422.22144567,0.00015479,2]
[319298468,1710645044992,-500.0,0.00015479,2]
[319298469,1710645045003,-500.0,0.00015479,2]
[319298470,1710645045012,-500.0,0.00015479,2]
[319298471,1710645045021,-500.0,0.00015479,2]
[319298472,1710645045031,-500.0,0.00015479,2]
[319298473,1710645045040,-500.0,0.00015479,2]
[319298474,1710645045049,-394.75871735,0.00015479,2]
[319298475,1710645045058,-578.3,0.00015479,2]
[319298476,1710645045067,-578.3,0.00015479,2]
[319298477,1710645045076,-578.3,0.00015479,2]
[319298478,1710645045085,-578.3,0.00015479,2]
[319298479,1710645045095,-578.3,0.00015479,2]
[319298480,1710645045104,-578.3,0.00015479,2]
[319298481,1710645045113,-578.3,0.00015479,2]
[319298482,1710645045122,-578.3,0.00015479,2]
[319298483,1710645045130,-578.3,0.00015479,2]
[319298484,1710645045140,-578.3,0.00015479,2]
[319298485,1710645045149,-578.3,0.00015479,2]
[319298486,1710645045158,-500.0,0.00015479,2]
[319298487,1710645045167,-578.3,0.00015479,2]
[319298488,1710645045176,-500.0,0.00015479,2]
[319298489,1710645045186,-578.3,0.00015479,2]
[319298490,1710645045195,-578.3,0.00015479,2]
[319298491,1710645045204,-578.32,0.00015479,2]
[319298492,1710645045213,-500.0,0.00015479,2]
[319298493,1710645045222,-500.0,0.00015479,2]
[319298494,1710645045231,-500.0,0.00015479,2]
[319298495,1710645045240,-500.0,0.00015479,2]
[319298496,1710645045249,-500.0,0.00015479,2]
[319298497,1710645045258,-623.91788727,0.00015479,2]
[319298498,1710645045271,-500.0,0.00015479,2]
[319298499,1710645045281,-500.0,0.00015479,2]
[319298500,1710645045290,-500.0,0.00015479,2]
[319298501,1710645045299,-500.0,0.00015479,2]
[319298502,1710645045308,-500.0,0.00015479,2]
[319298503,1710645045317,-500.0,0.00015479,2]
[319298504,1710645045325,-500.0,0.00015479,2]
[319298506,1710645045335,-251.05499305,0.00015479,2]
[319298507,1710645045345,-500.0,0.00015479,2]
[319298508,1710645045355,-500.0,0.00015479,2]
[319298509,1710645045364,-500.0,0.00015479,2]
[319298510,1710645045373,-500.0,0.00015479,2]
[319298512,1710645045383,-500.0,0.00015479,2]
[319298513,1710645045394,-500.0,0.00015479,2]
[319298515,1710645045405,-500.0,0.00015479,2]
[319298517,1710645045414,-500.0,0.00015479,2]
[319298518,1710645045424,-500.0,0.00015479,2]
[319298519,1710645045435,-500.0,0.00015479,2]
[319298520,1710645045444,-630.03,0.00015479,2]
[319298522,1710645045454,-300.0,0.00015479,2]
[319298524,1710645045465,-1529.19,0.00015479,2]
[319298525,1710645045475,-1529.19,0.00015479,2]
[319298526,1710645045486,-1529.19,0.00015479,2]
[319298527,1710645045495,-1529.19,0.00015479,2]
[319298528,1710645045505,-1529.19,0.00015479,2]
[319298529,1710645045515,-500.0,0.00015479,2]
[319298530,1710645045525,-1529.19,0.00015479,2]
[319298531,1710645045535,-270.08426737,0.00015479,2]
[319298532,1710645045545,-1529.19,0.00015479,2]
[319298533,1710645045555,-1529.19,0.00015479,2]
[319298534,1710645045565,-1529.19,0.00015479,2]
[319298535,1710645045575,-1529.19,0.00015479,2]
[319298536,1710645045585,-1529.19,0.00015479,2]
[319298537,1710645045595,-1529.19,0.00015479,2]
[319298538,1710645045604,-1529.19,0.00015479,2]
[319298539,1710645045614,-1529.29721721,0.00015479,2]
[319298540,1710645045623,-500.0,0.00015479,2]
[319298541,1710645045633,-500.0,0.00015479,2]
[319298542,1710645045643,-500.0,0.00015479,2]
[319298543,1710645045655,-500.0,0.00015479,2]
[319298544,1710645045665,-500.0,0.00015479,2]
[319298545,1710645045675,-500.0,0.00015479,2]
[319298546,1710645045686,-500.0,0.00015479,2]
[319298547,1710645045696,-500.0,0.00015479,2]
[319298548,1710645045706,-500.0,0.00015479,2]
[319298549,1710645045716,-500.0,0.00015479,2]
[319298550,1710645045726,-639.25,0.00015479,2]
[319298551,1710645045735,-662.85,0.00015479,2]
[319298552,1710645045745,-662.85,0.00015479,2]
[319298553,1710645045755,-662.85,0.00015479,2]
[319298554,1710645045765,-662.85,0.00015479,2]
[319298555,1710645045775,-662.85,0.00015479,2]
[319298556,1710645045785,-662.85,0.00015479,2]
[319298557,1710645045795,-662.85,0.00015479,2]
[319298558,1710645045805,-662.85,0.00015479,2]
[319298559,1710645045815,-662.85,0.00015479,2]
[319298560,1710645045826,-662.85,0.00015479,2]
[319298561,1710645045836,-662.85,0.00015479,2]
[319298562,1710645045846,-662.85,0.00015479,2]
[319298563,1710645045856,-662.85,0.00015479,2]
[319298564,1710645045866,-662.94736755,0.00015479,2]
[319298565,1710645045876,-500.0,0.00015479,2]
[319298566,1710645045887,-500.0,0.00015479,2]
[319298567,1710645045897,-482.08585656,0.00015479,2]
[319298568,1710645045907,-501.74,0.00015479,2]
[319298569,1710645045917,-501.74,0.00015479,2]
[319298570,1710645045927,-501.74,0.00015479,2]
[319298571,1710645045937,-501.74,0.00015479,2]
[319298572,1710645045947,-501.74,0.00015479,2]
[319298573,1710645045957,-501.74,0.00015479,2]
[319298574,1710645045968,-501.74,0.00015479,2]
[319298575,1710645045978,-501.74,0.00015479,2]
[319298576,1710645045987,-501.74,0.00015479,2]
[319298577,1710645045997,-501.74,0.00015479,2]
[319298578,1710645046007,-501.74,0.00015479,2]
[319298579,1710645046017,-501.74,0.00015479,2]
[319298580,1710645046026,-501.74,0.00015479,2]
[319298581,1710645046036,-1369.02,0.00015479,2]
[319298582,1710645046046,-1369.02,0.00015479,2]
[319298583,1710645046055,-501.74927328,0.00015479,2]
[319298584,1710645046065,-782.38583091,0.00015479,2]
[319298585,1710645046363,-586.63416909,0.00015479,2]
[319298586,1710645046376,-622.48021458,0.00015479,2]
[319298587,1710645046404,-746.53978542,0.00015479,2]
[319298588,1710645046416,-1369.02,0.00015479,2]
[319298589,1710645046428,-1369.02,0.00015479,2]
[319298590,1710645046438,-1369.02,0.00015479,2]
[319298591,1710645046448,-1369.02,0.00015479,2]
[319298592,1710645046459,-571.69,0.00015479,2]
[319298593,1710645046475,-571.69,0.00015479,2]
[319298594,1710645046487,-948.18117389,0.00015479,2]
[319298595,1710645046559,-420.83882611,0.00015479,2]
[319298596,1710645046571,-27.70434483,0.00015479,2]
[319298597,1710645046589,-543.98565517,0.00015479,2]
[319298598,1710645046601,-1369.02,0.00015479,2]
[319298599,1710645046612,-571.69,0.00015479,2]
[319298600,1710645046625,-1369.02,0.00015479,2]
[319298601,1710645046638,-571.69,0.00015479,2]
[319298602,1710645046650,-1369.02,0.00015479,2]
[319298603,1710645046661,-1342.15616758,0.00015479,2]
[319298604,1710645046978,-1165.58,0.00015398,2]
[319298605,1710645046988,-26.86383242,0.00015479,2]
[319298606,1710645046999,-571.69,0.00015479,2]
[319298607,1710645047010,-571.69,0.00015479,2]
[319298608,1710645047022,-1369.25,0.00015479,2]
[319298609,1710645047033,-571.69,0.00015479,2]
[319298610,1710645047045,-571.69,0.00015479,2]
[319298611,1710645047057,-571.69,0.00015479,2]
[319298612,1710645047068,-571.69,0.00015479,2]
[319298613,1710645047079,-239.49788032,0.00015479,2]
[319298614,1710645047096,-332.19211968,0.00015479,2]
[319298615,1710645047106,-23.53213158,0.00015479,2]
[319298616,1710645047124,-548.15786842,0.00015479,2]
[319298617,1710645047135,-571.84,0.00015479,2]
[319298618,1710645047147,-94.44516409,0.00015479,2]
[319298619,1710645047171,-350.70252869,0.00015398,2]
[319298620,1710645047468,-354.19980252,0.00015289,2]
[319298621,1710645047481,-187.23506842,0.00015398,2]
[319298622,1710645047512,-627.64240289,0.00015398,2]
[319298623,1710645047523,-1165.58,0.00015398,2]
[319298624,1710645047534,-1165.58,0.00015398,2]
[319298625,1710645047546,-1165.58,0.00015399,2]
[319298626,1710645047556,-1165.58,0.00015399,2]
[319298627,1710645047567,-500.0,0.00015399,2]
[319298628,1710645047577,-1165.58,0.00015399,2]
[319298629,1710645047587,-500.0,0.00015399,2]
[319298630,1710645047597,-1165.58,0.00015399,2]
[319298631,1710645047607,-500.0,0.00015399,2]
[319298632,1710645047617,-1165.58,0.00015399,2]
[319298633,1710645047627,-500.0,0.00015399,2]
[319298634,1710645047637,-500.0,0.00015399,2]
[319298635,1710645047647,-2249.98001698,0.00015458,2]
[319298636,1710645047658,-578.13038067,0.00015458,2]
[319298637,1710645047668,-3389.68216028,0.00015458,2]
[319298638,1710645047679,-694.17811061,0.00015478,2]
[319298639,1710645048045,-181.47739906,0.00015299,2]
[319298640,1710645048054,-354.19980252,0.00015344,2]
[319298641,1710645048064,-11140.766,0.00015399,2]
[319298642,1710645048073,-500.0,0.00015399,2]
[319298643,1710645048083,-500.0,0.00015399,2]
[319298644,1710645048092,-500.0,0.00015399,2]
[319298645,1710645048102,-471.40188939,0.00015478,2]
[319298646,1710645048111,-500.0,0.00015478,2]
[319298647,1710645048120,-405.55483591,0.00015479,2]
[319298648,1710645048130,-500.0,0.00015479,2]
[319298649,1710645048139,-172.31276274,0.00015479,2]
[319298650,1710645048148,-500.0,0.00015479,2]
[319298651,1710645048158,-586.14771187,0.00015479,2]
[319298652,1710645048167,-500.0,0.00015479,2]
[319298653,1710645048176,-565.11,0.00015479,2]
[319298654,1710645048185,-711.8,0.00015479,2]
[319298655,1710645048195,-711.8,0.00015479,2]
[319298656,1710645048204,-711.8,0.00015479,2]
[319298657,1710645048215,-711.8,0.00015479,2]
[319298658,1710645048224,-711.8,0.00015479,2]
[319298659,1710645048233,-711.8,0.00015479,2]
[319298660,1710645048242,-711.8,0.00015479,2]
[319298661,1710645048252,-711.8,0.00015479,2]
[319298662,1710645048261,-711.8,0.00015479,2]
[319298663,1710645048271,-711.8,0.00015479,2]
[319298664,1710645048280,-711.8,0.00015479,2]
[319298665,1710645048289,-711.8,0.00015479,2]
[319298666,1710645048298,-711.8,0.00015479,2]
[319298667,1710645048308,-711.8,0.00015479,2]
[319298668,1710645048317,-711.96,0.00015479,2]
[319298669,1710645048327,-614.42,0.00015479,2]
[319298670,1710645048336,-500.0,0.00015479,2]
[319298671,1710645048345,-614.42,0.00015479,2]
[319298672,1710645048354,-500.0,0.00015479,2]
[319298673,1710645048363,-614.42,0.00015479,2]
[319298674,1710645048373,-500.0,0.00015479,2]
[319298675,1710645048383,-614.42,0.00015479,2]
[319298676,1710645048394,-500.0,0.00015479,2]
[319298677,1710645048404,-614.42,0.00015479,2]
[319298678,1710645048414,-466.99,0.00015479,2]
[319298679,1710645048424,-614.42,0.00015479,2]
[319298680,1710645048435,-614.42,0.00015479,2]
[319298681,1710645048444,-614.42,0.00015479,2]
[319298682,1710645048453,-614.42,0.00015479,2]
[319298683,1710645048463,-614.42,0.00015479,2]
[319298684,1710645048474,-614.42,0.00015479,2]
[319298685,1710645048487,-614.42,0.00015479,2]
[319298686,1710645048497,-614.42,0.00015479,2]
[319298687,1710645048507,-614.49,0.00015479,2]
[319298688,1710645048518,-249.36136534,0.00015479,2]
[319298689,1710645048526,-1643.07,0.00015479,2]
[319298690,1710645048537,-1643.07,0.00015479,2]
[319298691,1710645048548,-1643.07,0.00015479,2]
[319298692,1710645048560,-1643.07,0.00015479,2]
[319298693,1710645048569,-1643.07,0.00015479,2]
[319298694,1710645048578,-1643.07,0.00015479,2]
[319298695,1710645048588,-1643.07,0.00015479,2]
[319298696,1710645048597,-1643.07,0.00015479,2]
[319298697,1710645048925,-1643.07,0.00015479,2]
[319298698,1710645048940,-1643.07,0.00015479,2]
[319298699,1710645048952,-1643.07,0.00015479,2]
[319298700,1710645048962,-1643.07,0.00015479,2]
[319298701,1710645048972,-1643.07,0.00015479,2]
[319298702,1710645048981,-1643.09,0.00015479,2]
[319298703,1710645048990,-2052.52,0.00015479,2]
[319298704,1710645048999,-467.53875072,0.00015479,2]
[319298705,1710645049095,-1584.98124928,0.00015479,2]
[319298706,1710645049104,-2052.52,0.00015479,2]
[319298707,1710645049113,-2052.52,0.00015479,2]
[319298708,1710645049122,-469.75875072,0.00015479,2]
[319298714,1710645619188,501.45,0.00011739,2]
[319298729,1710646148834,476.37,0.00011431,2]
[319298733,1710646149176,-155.0,0.00012458,2]
[319298734,1710646149198,-296.11090635,0.00012459,2]
[319298742,1710646231806,-158.09190079,0.00012281,2]
[319298743,1710646231815,-19872.09131627,0.00012282,2]
[319298744,1710646231824,-522.4369211,0.00012381,2]
[319298745,1710646231833,-364.11937944,0.00012382,2]
[319298746,1710646231843,-756.78234341,0.00012459,2]
[319298747,1710646231853,-4808.0,0.0001246,2]
[319298748,1710646231862,-1032.68646549,0.000127,2]
[319298749,1710646231872,-163.49,0.0001292,2]
[319298750,1710646231882,-155.0,0.00012999,2]
[319298751,1710646231891,-200.0,0.00013,3]
[319298752,1710646231900,-543.24985969,0.00013156,2]
[319298753,1710646231910,-204.51,0.00013226,2]
[319298754,1710646231919,-163.49,0.00013257,2]
[319298755,1710646231929,-150.0,0.00013351,2]
[319298756,1710646231938,-156.79,0.00013396,2]
[319298757,1710646231947,-354.58,0.00013398,2]
[319298758,1710646231956,-150.0,0.00013472,2]
[319298759,1710646231972,-1181.61,0.00013473,2]
[319298760,1710646231985,-224.99,0.00013473,2]
[319298761,1710646231995,-163.49,0.00013594,2]
[319298762,1710646232004,-1072.92653139,0.00013644,2]
[319298763,1710646232015,-23900.0,0.00013645,2]
[319298764,1710646232024,-499.99,0.00013645,2]
[319298765,1710646232033,-293.82,0.00013649,2]
[319298766,1710646232044,-250.0,0.00013651,2]
[319298767,1710646232053,-476.37,0.00013695,2]
[319298769,1710646232063,-234.73942946,0.00013699,2]
[319298770,1710646232072,-193.28,0.00013699,2]
[319298771,1710646232082,-478.86,0.00013699,2]
[319298772,1710646232093,-645.42,0.00013718,2]
[319298773,1710646232104,-250.0,0.00013777,2]
[319298774,1710646232113,-3149.949,0.000139,2]
[319298775,1710646232123,-155.37975865,0.0001393,2]
[319298776,1710646232132,-137259.29872874,0.00013999,2]
[319298780,1710646232156,-1675.94457362,0.00013999,2]
[319298782,1710646232168,-471.07573653,0.00013999,2]
[319298784,1710646232181,-6867.68274094,0.00013999,2]
[319298787,1710646232195,-5424.98708854,0.00013999,2]
[319298802,1710646237793,-852.77469293,0.00013999,2]
[319298803,1710646237806,-5439.7648,0.00013999,2]
[319298804,1710646237905,-407970.7728943,0.00013999,2]
[319298805,1710646237916,-50000.0,0.00014,2]
[319298806,1710646237926,-304.77,0.0001403,2]
[319298807,1710646237937,-170.04,0.0001411,2]
[319298808,1710646237947,-155.0,0.00014502,2]
[319298809,1710646237957,-11327.93828767,0.00014503,2]
[319298810,1710646237968,-29999.99,0.00014504,2]
[319298811,1710646237978,-12850.68,0.00014504,2]
[319298812,1710646237987,-195.51,0.00014526,2]
[319298813,1710646237996,-210.0,0.0001482,2]
[319298814,1710646238009,-1853.3075,0.00014923,2]
[319298815,1710646238018,-181.47739905,0.0001497,2]
[319298816,1710646238028,-245000.0,0.00015,2]
[319298817,1710646238038,-2259.45550174,0.00015,2]
[319298818,1710646238047,-200.0,0.00015,2]
[319298819,1710646238057,-500.0,0.00015024,2]
[319298820,1710646238066,-3097.44,0.00015024,2]
[319298821,1710646238075,-100000.0,0.00015024,2]
[319298822,1710646238084,-354.58,0.00015072,2]
[319298823,1710646238094,-3000.0,0.000151,2]
[319298824,1710646238108,-156.68084355,0.000151,2]
[319298825,1710646238117,-156.68084355,0.000151,2]
[319298826,1710646238126,-156.68084355,0.000151,2]
[319298827,1710646238135,-156.68084355,0.000151,2]
[319298828,1710646238146,-156.68084355,0.00015147,2]
[319298829,1710646238155,-156.68084355,0.00015207,2]
[319298830,1710646238165,-6388.54531426,0.00015233,2]
[319298831,1710646238174,-6388.54531422,0.00015233,2]
[319298832,1710646238184,-6388.54531422,0.00015233,2]
[319298833,1710646238194,-6388.54531422,0.00015233,2]
[319298834,1710646238204,-6388.54531422,0.00015233,2]
[319298835,1710646238214,-6388.54531422,0.00015233,2]
[319298836,1710646238225,-6388.54531422,0.00015233,2]
[319298837,1710646238234,-6388.54531422,0.00015268,2]
[319298838,1710646238245,-156.68084355,0.00015268,2]
[319298839,1710646238257,-151.62236202,0.00015298,2]
[319298840,1710646238267,-1567.50714412,0.00015299,2]
[319298841,1710646238277,-3242.0,0.000153,2]
[319298842,1710646238286,-1567.50714404,0.00015308,2]
[319298843,1710646238296,-1567.50714404,0.00015317,2]